Cogmind - Beta 13 @@@ ROGUE MODE // 2024.04.16 @ 16:51:09 Player: Minty Result: Destroyed by G-34 Mercenary with Small Laser Performance ------------- Evolutions (0) 0 Regions Visited (4) 800 Robots Destroyed (17) 85 Value Destroyed (482) 482 Prototype IDs (27) 540 Alien Tech Used (0) 0 Bonus (300) 300 TOTAL SCORE: 2207 Bonus ------- Aligned with FarCom 300 Cogmind --------- Core Integrity 0/250 Matter 161/300 Energy 100/100 System Corruption 1% Temperature Cool (6) Movement Flying (40) Location -9/Mines Parts ------- > --- POWER (1) -------- (None) > --- PROPULSION (2) --- Flight Unit > --- UTILITY (2) ------ (None) > --- WEAPON (2) ------- Light Assault Rifle > --- INVENTORY (5) ---- High-capacity Matter Pod (200) Signal Interpreter Cloak of Protection EMP Trap Peak State ------------ > --- POWER ------------ Ion Engine > --- PROPULSION ------- Wheel Compact Wheel > --- UTILITY ---------- Heat Sink Large Storage Unit > --- WEAPON ----------- Medium Laser Assault Rifle > --- INVENTORY -------- Light Treads Aluminum Leg Aluminum Leg Sensor Array Signal Interpreter ECM Suite Cloak of Protection Light Armor Plating Grenade Launcher Grenade Launcher EMP Trap EMP Trap EMP Trap EMP Trap EMP Trap [Rating: 9] Favorites ----------- Power Ion Engine Engine Ion Engine Propulsion Aluminum Leg Leg Aluminum Leg Wheel Compact Wheel Flight Unit Flight Unit Utility Large Storage Unit Device Heat Sink Storage Large Storage Unit Protection Light Armor Plating Weapon Medium Laser Energy Gun Medium Laser Ballistic Gun Assault Rifle Launcher Grenade Launcher Build | -11 -10 -10 -10 -9 ------- Run | Yrd Mat Min Exi Min Slots Evolved . | . . . . . Power . | . . . . . Propulsion . | . . . . . Utility . | . . . . . Weapon . | . . . . . Parts Attached 27 | . 11 3 1 12 Power 4 | . 1 1 . 2 Engine 4 | . 1 1 . 2 Core . | . . . . . Reactor . | . . . . . Propulsion 8 | . 4 . . 4 Treads . | . . . . . Leg 4 | . 2 . . 2 Wheel 2 | . 2 . . . Hover . | . . . . . Flight 2 | . . . . 2 Utility 5 | . 3 1 1 . Device 2 | . 1 1 . . Storage 2 | . 1 . 1 . Processor . | . . . . . Hackware . | . . . . . Protection 1 | . 1 . . . Artifact . | . . . . . Weapon 10 | . 3 1 . 6 Energy Gun 5 | . 3 . . 2 Energy Cannon . | . . . . . Ballistic Gun 2 | . . 1 . 1 Ballistic Cannon . | . . . . . Launcher 3 | . . . . 3 Special Weapon . | . . . . . Impact Weapon . | . . . . . Slashing Weapon . | . . . . . Piercing Weapon . | . . . . . Special Melee Weapon . | . . . . . Unidentified Prototypes . | . . . . . Parts Lost 13 | . . 2 . 11 Power 3 | . . 1 . 2 Propulsion 4 | . . . . 4 Utility 1 | . . . . 1 Weapon 5 | . . 1 . 4 Highest Loss Streak 4 | . . 2 . 4 To Critical Strikes . | . . . . . Average Slot Usage (%) 90 | . 93 93 100 83 Engine 11 | . 14 13 14 8 Leg 12 | . 23 . . 21 Wheel 12 | . 3 28 28 . Flight 1 | . . . . 4 Device 10 | . 6 11 14 11 Storage 13 | . 14 14 14 12 Protection 1 | . 3 2 . . Energy Gun 14 | . 27 16 14 8 Ballistic Gun 4 | . . 6 14 2 Launcher 5 | . . . . 12 Naked Turns . | . . . . . Heaviest Build 32 | 10 30 30 30 32 Greatest Support 26 | 20 26 26 26 20 Greatest Overweight (x) 2 | . 1 1 1 2 Average Overweight (x) . | . . 1 1 . Largest Inventory Capacity 15 | . 15 15 15 15 Average Capacity 13 | . 9 15 15 13 Most Carried 15 | . 10 15 15 15 Average Carried 11 | . 7 10 14 10 Final Capacity 15 | 8 15 15 15 5 Final Carried 15 | 6 10 15 15 4 Class Distribution -------------------- 90% | Mutant 9% | Scavenger-Mutant Dominant Class ---------------- Mutant | -10/Materials Mutant | -10/Mines Mutant | -10/Exiles Mutant | -9/Mines Resources | -11 -10 -10 -10 -9 ----------- Run | Yrd Mat Min Exi Min Matter Collected 474 | 200 110 30 20 114 Remotely . | . . . . . Salvage Created 413 | . 114 104 . 195 Parts 26 | . 11 1 . 14 Haulers Intercepted . | . . . . . Recyclers Shooed . | . . . . . Parts Field Recycled . | . . . . . Retrieved Matter . | . . . . . Parts Self-Destructed . | . . . . . Prevented . | . . . . . Kills | -11 -10 -10 -10 -9 ------- Run | Yrd Mat Min Exi Min Combat Hostiles Destroyed 14 | . 2 2 . 10 Guns 8 | . 2 2 . 4 AOE 6 | . . . . 6 Classes Destroyed 6 | . 3 . . 3 Builder 1 | . 1 . . . Tunneler 1 | . . . . 1 Watcher 1 | . 1 . . . Swarmer 4 | . . . . 4 Grunt 8 | . 2 2 . 4 Sentry 2 | . . . . 2 Best Kill Streak 4 | . 3 1 . 4 Combat Bots Only 4 | . 2 1 . 4 Max Kills in Single Turn 1 | . 1 1 . 1 Gunslinging . | . . . . . Exploded 1 | . . . . 1 Melee . | . . . . . Uniques/NPCs Destroyed . | . . . . . Combat | -11 -10 -10 -10 -9 -------- Run | Yrd Mat Min Exi Min Hostile Shots Fired 119 | . 14 25 . 80 Missed 33 | . 2 8 . 23 Damage Taken 1252 | . 145 271 . 836 Core 254 | . 11 53 . 190 Absorbed by Shields . | . . . . . Core Remaining (%) 100 | 100 . . . . Volleys Fired 66 | . 9 18 . 39 Largest 2 | . 2 2 . 2 Hottest 105 | . 100 100 . 105 Shots Fired 101 | . 18 24 . 59 Gun 85 | . 18 24 . 43 Cannon . | . . . . . Launcher 16 | . . . . 16 Special . | . . . . . Kinetic 14 | . . . . 14 Thermal 71 | . 18 24 . 29 Explosive 16 | . . . . 16 Electromagnetic . | . . . . . Robot Hit Streak 13 | . 11 7 . 13 Robot Miss Streak 7 | . 1 2 . 7 Penetration Max . | . . . . . Secondary Targets 3 | . 1 1 . 1 Max Gunslinging Chain 1 | . 1 1 . 1 Shots Hit Robots 78 | . 13 17 . 48 Core Hits 45 | . 7 4 . 34 Critical Kills . | . . . . . Critical Parts Destroyed . | . . . . . Critical Strikes 2 | . 1 1 . . Burn 2 | . 1 1 . . Melee Attacks . | . . . . . Impact . | . . . . . Slashing . | . . . . . Piercing . | . . . . . Sneak Attacks . | . . . . . Combat Hostiles . | . . . . . Follow-up Attacks . | . . . . . Damage Inflicted 1292 | . 163 215 . 914 Guns 797 | . 163 215 . 419 Cannons . | . . . . . Explosions 495 | . . . . 495 Melee . | . . . . . Ramming . | . . . . . Kinetic 122 | . . . . 122 Thermal 675 | . 163 215 . 297 Explosive 495 | . . . . 495 Electromagnetic . | . . . . . Impact . | . . . . . Slashing . | . . . . . Piercing . | . . . . . Highest Corruption 1 | . . . . 1 Average Corruption 1 | . . . . 1 Corruption Purged . | . . . . . Corruption Blocked . | . . . . . Effects 1 | . . . . 1 Heat Flow Errors 1 | . . . . 1 Overload Shots . | . . . . . Overflow Damage 17 | . . . . 17 Projectiles . | . . . . . Explosions 17 | . . . . 17 Melee . | . . . . . Knockbacks . | . . . . . Impact . | . . . . . Kinetic . | . . . . . Secondary . | . . . . . Self-Inflicted Damage 202 | . . . . 202 Shots 10 | . . . . 10 Rammed . | . . . . . Targets Rammed . | . . . . . Kicked . | . . . . . Crushed . | . . . . . Highest Temperature 490 | . 351 490 . 175 Average Temperature 166 | . 152 300 . 43 Received Heat Transfer 561 | . 99 147 . 315 Effects 5 | . 1 4 . . Shutdowns 2 | . . 2 . . Energy Bleed 1 | . . 1 . . Damage (minor) 2 | . 1 1 . . Siege Activations . | . . . . . Robots Corrupted . | . . . . . Combat Hostiles . | . . . . . Parts Fried . | . . . . . Impact Corruptions . | . . . . . Robots Melted . | . . . . . Combat Hostiles . | . . . . . Parts Melted 7 | . 3 4 . . Heat Transferred 1800 | . 555 703 . 542 Parts Sabotaged . | . . . . . Parts Stolen . | . . . . . Parts Stripped . | . . . . . Power Chain Reactions . | . . . . . Alert | -11 -10 -10 -10 -9 ------- Run | Yrd Mat Min Exi Min Peak Influence 161 | . 75 56 . 161 Initial 8 | . . 8 . . Average 64 | . 34 45 . 87 Maximum Alert Level . | . . . . . Low Security (%) 100 | . 100 100 . 100 Level 1 . | . . . . . Level 2 . | . . . . . Level 3 . | . . . . . Level 4 . | . . . . . Level 5 . | . . . . . High Security . | . . . . . Max Security . | . . . . . Squads Dispatched 2 | . . . . 2 Investigation 1 | . . . . 1 Extermination . | . . . . . Reinforcement 1 | . . . . 1 Assault . | . . . . . Garrison . | . . . . . Intercept . | . . . . . Searches Triggered . | . . . . . Construction Impeded 1 | . . . . 1 Haulers Reinforced . | . . . . . Active Scanning Responses . | . . . . . Cargo Convoy Interrupts . | . . . . . Stealth | -11 -10 -10 -10 -9 --------- Run | Yrd Mat Min Exi Min Distress Signals 2 | . . . . 2 Communications Jammed . | . . . . . Distress Signals . | . . . . . Times Spotted 22 | . 9 2 . 11 Peak Tracking Total 4 | . 4 2 . 4 Tactical Retreats . | . . . . . Traps | -11 -10 -10 -10 -9 ------- Run | Yrd Mat Min Exi Min Traps Triggered 1 | . 1 . . . Indirectly . | . . . . . Trap Hack Attempts . | . . . . . Triggered . | . . . . . Disarmed . | . . . . . Reprogrammed . | . . . . . Reused 1 | . . . . 1 Traps Extracted . | . . . . . Installed 4 | . . . . 4 Triggered 1 | . . . . 1 Most Traps Carried 5 | . . 5 5 5 Machines | -11 -10 -10 -10 -9 ---------- Run | Yrd Mat Min Exi Min Machines Disabled 2 | . . . . 2 Max in Single Turn 2 | . . . . 2 Machines Repaired . | . . . . . Machines Dismantled . | . . . . . Machines Sabotaged . | . . . . . Overloaded Fab Kills . | . . . . . Hacking | -11 -10 -10 -10 -9 --------- Run | Yrd Mat Min Exi Min Machines Accessed 6 | . 2 1 2 1 Terminals 4 | . 2 1 . 1 Fabricators . | . . . . . Repair Stations . | . . . . . Recycling Units . | . . . . . Scanalyzers . | . . . . . Garrison Access . | . . . . . Total Hacks 14 | . 6 4 2 2 Successful 9 | . 4 3 2 . Failed 5 | . 2 1 . 2 Catastrophic 1 | . . . . 1 Database Lockouts . | . . . . . Manual 6 | . . 3 1 2 Terminals 12 | . 6 4 . 2 Fabricators . | . . . . . Repair Stations . | . . . . . Recycling Units . | . . . . . Scanalyzers . | . . . . . Garrison Access . | . . . . . Terminal Hacks 9 | . 4 3 2 . Record 1 | . . . 1 . Robot Schematic 1 | . . 1 . . Prototype ID Bank 2 | . 1 1 . . Terminal Index 1 | . 1 . . . Unreport Threat 1 | . 1 . . . Patrol Status 1 | . 1 . . . Zone Layout 1 | . . 1 . . Derelict Proto ID Bank 1 | . . . 1 . Fabricator Hacks . | . . . . . Repair Station Hacks . | . . . . . Recycling Unit Hacks . | . . . . . Scanalyzer . | . . . . . Garrison Access Hacks . | . . . . . Unauthorized Hacks . | . . . . . Terminals . | . . . . . Fabricators . | . . . . . Repair Stations . | . . . . . Recycling Units . | . . . . . Scanalyzers . | . . . . . Garrison Access . | . . . . . Data Cores Recovered . | . . . . . Used . | . . . . . Hacking Detections 4 | . 2 1 . 1 Full Trace Events 1 | . . . . 1 Feedback Events 1 | . . . . 1 Corruption 1 | . . . . 1 Feedback Blocked . | . . . . . Robot Schematics Acquired 1 | . . 1 . . Robots Built . | . . . . . Authchips . | . . . . . Time . | . . . . . Total Robot Build Rating . | . . . . . Part Schematics Acquired . | . . . . . Parts Built . | . . . . . Authchips . | . . . . . Time . | . . . . . Total Part Build Rating . | . . . . . Parts Repaired . | . . . . . Time . | . . . . . Parts Recycled . | . . . . . Recycled Matter . | . . . . . Retrieved Matter . | . . . . . Retrieved Components . | . . . . . Parts Scanalyzed . | . . . . . Part Schematics Acquired . | . . . . . Parts Damaged . | . . . . . Bothacking | -11 -10 -10 -10 -9 ------------ Run | Yrd Mat Min Exi Min Used RIF Installer . | . . . . . Robots Hacked . | . . . . . Non-combat . | . . . . . Combat . | . . . . . Robot Hacks Applied . | . . . . . Relay Couplers Released . | . . . . . Fabnet Peak Effective % . | . . . . . Robots Rewired . | . . . . . Allies Hacked . | . . . . . Hacks Repelled . | . . . . . Allies | -11 -10 -10 -10 -9 -------- Run | Yrd Mat Min Exi Min Total Allies . | . . . . . Largest Group . | . . . . . Highest-Rated Group . | . . . . . Highest-Rated Ally . | . . . . . Total Orders . | . . . . . Ally Attacks . | . . . . . Total Damage . | . . . . . Kills . | . . . . . Allies Corrupted . | . . . . . Allies Melted . | . . . . . Intel | -11 -10 -10 -10 -9 ------- Run | Yrd Mat Min Exi Min Robot Analysis Total . | . . . . . Derelict Logs Recovered 2 | . . 1 . 1 Drone Launches . | . . . . . Drone Recoveries . | . . . . . Exploration | -11 -10 -10 -10 -9 ------------- Run | Yrd Mat Min Exi Min Turns Passed 1419 | . 227 337 253 602 Spaces Moved 971 | 1 137 272 237 324 Core . | . . . . . Treads . | . . . . . Legs 328 | 1 111 . . 216 Wheels 535 | . 26 272 237 . Hover . | . . . . . Flight 108 | . . . . 108 Fastest Speed 37 | 120 105 105 105 37 Average Speed 119 | 120 120 105 105 141 Slowest Speed 260 | 120 190 105 105 260 Overloaded Moves . | . . . . . Propulsion Burnouts . | . . . . . Robots Hopped 2 | . . . . 2 Cave-ins Triggered . | . . . . . Exploration Rate (%) 41 | 1 26 72 60 47 Regions Visited 4 Branch Regions 3 Pre-discovered Areas 2 | . . 1 1 . Known Exits Taken . | . . . . . Unknown Exits Taken 4 | 1 1 1 1 . Scrap Searched 2 | . . 2 . . Spaces Dug . | . . . . . Terrain Destroyed 58 | . . . . 58 Melee . | . . . . . Projectile . | . . . . . AOE 58 | . . . . 58 Terrain Rammed . | . . . . . Walls Destroyed . | . . . . . Machines Disabled . | . . . . . Actions | -11 -10 -10 -10 -9 --------- Run | Yrd Mat Min Exi Min Total 1131 | . 178 298 242 413 Wait 34 | . 12 . . 22 Move 963 | . 136 271 236 320 Hop 2 | . . . . 2 Pick Up 12 | . 5 5 2 . Fast Attach 14 | . 6 2 . 6 Attach 6 | . . 1 . 5 Detach 4 | . . 1 . 3 Swap 7 | . 5 . 1 1 Drop 19 | . 5 . 3 11 Fire 66 | . 9 18 . 39 Melee . | . . . . . Ram . | . . . . . Kick . | . . . . . Crush . | . . . . . Escape Stasis . | . . . . . Rewire . | . . . . . Trap 4 | . . . . 4 Miscellaneous . | . . . . . Route ------- -11/Scrapyard -10/Materials -10/Mines (discovered 3 exits: [*Mat x2] / *Exi) -10/Exiles -9/Mines History --------- Turn | Location | Event 1 | -11/Scrapyard | Discovered new exit (range 0) 1 | -11/Scrapyard | Entered Materials 131 | -10/Materials | Discovered new exit (range 13) 228 | -10/Materials | Entered Mines 320 | -10/Mines | Build established: Mutant 378 | -10/Mines | Discovered new exit (range 3) 415 | -10/Mines | Discovered new exit (range 8) 416 | -10/Mines | Learned location of Storage (-8) 477 | -10/Mines | Learned Materials trap positions 505 | -10/Mines | Found a hidden stash of uninstalled traps 559 | -10/Mines | Deemed a non-threat by the Exiles lab entrance 560 | -10/Mines | Discovered new exit (range 5) 565 | -10/Mines | Entered Exiles 594 | -10/Exiles | Met 8R-AWN 610 | -10/Exiles | Met EX-HEX 637 | -10/Exiles | Met EX-BIN 649 | -10/Exiles | Aligned with FarCom system 651 | -10/Exiles | Given EX-Vault access code 675 | -10/Exiles | Opened EX-Vault 682 | -10/Exiles | Found Cloak of Protection 705 | -10/Exiles | Warned to stay clear of 0b10 Research branches 734 | -10/Exiles | Met EX-DEC 739 | -10/Exiles | Learned location of Zion (-6) 805 | -10/Exiles | Discovered new exit (range 10) 818 | -10/Exiles | Left Exiles lab with Cloak of Protection 818 | -10/Exiles | Entered Mines 845 | -9/Mines | Core integrity fell below 50% 852 | -9/Mines | Assembled infested the area 869 | -9/Mines | Lost 4 parts (2n2w) 961 | -9/Mines | Learned Materials garrison access intel 1293 | -9/Mines | Core integrity fell below 20% 1333 | -9/Mines | Lost 3 parts (1n1u1w) 1420 | -9/Mines | Destroyed by G-34 Mercenary with Small Laser Last Messages --------------- 01320_ Acquired Flight Unit. 01324_ Acquired 7 matter. 01335_ Acquired Flight Unit. 01337_ Dropped Aluminum Leg. 01337_ Dropped Sml. Laser. 01338_ Dropped ECM Suite. 01338_ Dropped Sensor Array. 01339_ Dropped Lgt. Armor Plating. 01339_ Dropped EMP Trap. 01340_ Dropped Lrg. Storage Unit. 01341_ Dropped Spread Laser. 01342_ Installed EMP Trap. 01346_ Acquired 9 matter. 01348_ Acquired Lgt. Assault Rifle. 01398_ Dropped EMP Trap. 01398_ Installed EMP Trap. 01407_ G-34 Mercenary triggered EMP Trap. 01407_ A bubble of electromagnetic force engulfs the area. 01408_ Lgt. Ion Engine destroyed. 01418_ Flight Unit destroyed. Map ----- +----------------------------------------------------+ | | | | | | | | | | | ?????????????????????????????????????????????????? | | ?????????????????????????????????????????????????? | | ??????????#####??????????????????????????????????? | | ?????????## #???####??????????????????????????? | | ?????????# #?## ##?????????????#########???? | | ?????????# ## #####?????????#T #???? | | ??????????# ############ #???? | | ????????????# """ #???? | | ?????????????# """ #???? | | ???####??????### ##### ####### """ #???? | | ??## ##???????## #####???# #?????# #???? | | ??# ###?????## ##???????# #?????########???? | | ### ####### #????????# #????????????????? | | # ##????????# ################## | | ## # ##?????????# | | / ##??????????################ ### | | ! ##??????????????????????????# #?? | | ##???????###????????????####?# #?? | | #???????## ######??????## ### #?? | | ! # ##????### #?????## #?? | | ! #??### @ ####### ## #?? | | ###### #### ### ## ### | | ?????# ### ## ##?# ## | | ?????## ##?## g ##??########## ###### | | ??????####???## k ##????????????# ## ###?? | | ??????????????# ##?????????????# ### ### | | ??????????????# ## #??????????????# #?# # | | ?????????????# ######????########??# ### | | ?????????????# #?????????# #??# | | ????????????# ?????????# #### ###### # | | ??????????? #?????????# """" #????# ## | | ????????? ##?????????# """" ######????# ## | | ???????? ## ##??????????# """" #?????????# | | ??????? ?# ????????????# #?????????##### | | ???????""" ??# ????????????# #?????????????? | | ?????????" ??# ????????????########?????????????? | | ?????????????# ?????????????????????????????????? | | ????????????? ?????????????????????????????????? | | ??????????????#??????????????????????????????????? | | ?????????????????????????????????????????????????? | | ?????????????????????????????????????????????????? | | ?????????????????????????????????????????????????? | | ?????????????????????????????????????????????????? | | ?????????????????????????????????????????????????? | | ?????????????????????????????????????????????????? | +----------------------------------------------------+ Best States ------------- Heat Dissipation 35 Energy Generation 10 Energy Capacity 250 Matter Stores 300 Matter Capacity 300 Sight Range 16 Terrain Scan Range 14 Terrain Scan Density 10 Armor Coverage 150 Evasion (%) 62 Item Schematics ----------------- None Robot Schematics ------------------ G-34 Mercenary | -10/Mines | Hacked Fabricated ------------ Nothing Alien Tech Used ----------------- None Achievements -------------- None Challenges ------------ None Game ------ Seed RagnarokFrostTreads Manual? 0 Play Time 00:08:58 Cumulative 719.0 hours Start 2024.04.16 @ 16:44:38 End 2024.04.16 @ 16:51:09 Sessions 1 Manual Loads 0 Difficulty Rogue Special Mode None Game No. 771 Rogue 496 Adventurer 123 Explorer 152 Win Type - Total 26 Types 20/0/4/1/0/0/0/1/0 Lore% 83 Gallery% 91 Achievement% 76 Wizard Run 0 Options --------- Layout 0 ASCII 0 Keyboard 1 Movement Numpad Keybinds 0 Fullscreen 2 Font 18/Terminus Map View 76x50 Zoom Use 0% Tactical HUD 1 Map Filters NONE Filters NONE Steam 1 RUN: da298ba2-99e8-4d6c-80fe-3fc53fa940ee